bitfinex-derivatives/quotes_BTCF0:USTF0_20250119
["timestamp","ask_amount","ask_price","bid_price","bid_amount"]
[1737321609471,0.047274,105870.0,105860.0,0.66450832]
[1737321609765,0.047274,105870.0,105860.0,0.67042155]
[1737321610169,0.047274,105870.0,105860.0,0.62314455]
[1737321610577,0.09859969,105870.0,105860.0,0.62314455]
[1737321610873,0.09859969,105870.0,105860.0,0.61723132]
[1737321611077,0.09859969,105870.0,105860.0,0.72174736]
[1737321611078,0.047274,105870.0,105860.0,0.72174736]
[1737321611575,0.10963084,105880.0,105860.0,0.72174736]
[1737321611777,0.01103615,105880.0,105870.0,0.70429769]
[1737321612081,0.04868134,105890.0,105880.0,0.047268]
[1737321612377,0.04868134,105890.0,105880.0,0.36552978]
[1737321612967,0.05971101,105890.0,105880.0,0.36552978]
[1737321615172,0.05971101,105890.0,105880.0,0.46412347]
[1737321615373,0.05971101,105890.0,105880.0,0.46441459]
[1737321615580,0.25629248,105890.0,105880.0,0.46441459]
[1737321615977,0.25629248,105890.0,105880.0,0.46736153]
[1737321616478,0.25629248,105890.0,105880.0,0.4673615]
[1737321617074,0.14404824,105890.0,105880.0,0.4673615]
[1737321617879,0.14404824,105890.0,105880.0,0.46707914]
[1737321618275,0.14404824,105890.0,105880.0,0.47327337]
[1737321619175,0.14404824,105890.0,105880.0,0.47299103]
[1737321619973,0.14404824,105890.0,105880.0,0.37439734]
[1737321620175,0.19537393,105890.0,105880.0,0.36876779]
[1737321620379,0.19537393,105890.0,105880.0,0.36848545]
[1737321620685,0.19537393,105890.0,105880.0,0.00768545]
[1737321621086,0.047268,105880.0,105870.0,0.60166316]
[1737321621387,0.09859369,105880.0,105870.0,0.3608]
[1737321621678,0.58149369,105880.0,105870.0,0.3608]
[1737321622072,0.047272,105870.0,105860.0,0.83837107]
[1737321622272,0.09859769,105870.0,105860.0,0.83837107]
[1737321622479,0.09859769,105870.0,105860.0,0.6125]
[1737321623775,0.09859769,105870.0,105850.0,1.36206352]
[1737321623971,0.047277,105860.0,105850.0,0.83057107]
[1737321624580,0.09860269,105860.0,105850.0,0.83057107]
[1737321624980,0.09860269,105860.0,105850.0,0.3608]
[1737321626477,0.18293992,105860.0,105850.0,0.3608]
[1737321627788,0.19376517,105860.0,105850.0,0.3608]
[1737321628485,0.14243948,105860.0,105850.0,0.3608]
[1737321629783,0.19376517,105860.0,105850.0,0.3608]
[1737321630181,0.43336517,105860.0,105850.0,0.3608]
[1737321630383,0.34902794,105860.0,105850.0,0.3608]
[1737321631080,0.34902794,105860.0,105850.0,0.36553116]
[1737321632081,0.34902794,105860.0,105850.0,0.00473116]
[1737321632280,0.047281,105850.0,105840.0,1.10867107]
[1737321632490,0.09860669,105850.0,105840.0,1.11340248]
[1737321632692,0.09860669,105850.0,105840.0,0.59140248]
[1737321633178,0.09860669,105850.0,105840.0,0.59435969]
[1737321634680,0.09860669,105850.0,105840.0,0.36848862]
[1737321635181,0.09860669,105850.0,105840.0,0.36848877]
[1737321637990,0.09516248,105860.0,105840.0,0.41981446]
[1737321638193,0.14244048,105860.0,105850.0,0.3608]
[1737321638394,0.19376617,105860.0,105850.0,0.36848877]
[1737321638983,0.19376617,105860.0,105850.0,0.36848802]
[1737321639890,0.14244048,105860.0,105850.0,0.36848802]
[1737321640196,0.14244048,105860.0,105850.0,0.91806902]
[1737321640400,0.05810325,105860.0,105850.0,0.91806902]
[1737321640589,0.05810325,105860.0,105850.0,0.87078802]
[1737321640894,0.05810325,105860.0,105850.0,0.87078786]
[1737321640895,0.10942894,105860.0,105850.0,0.87078786]
[1737321641297,0.10942894,105860.0,105850.0,0.36848786]
[1737321641497,0.10942894,105860.0,105850.0,0.00768786]
[1737321641702,0.10942894,105860.0,105850.0,0.00295687]
[1737321642602,0.47022894,105860.0,105850.0,0.00295687]
[1737321642895,0.047281,105850.0,105840.0,0.22587107]
[1737321643088,0.36230669,105850.0,105840.0,0.22882834]
[1737321643288,0.36230669,105850.0,105840.0,0.58962834]
[1737321643488,0.36230669,105850.0,105840.0,0.22882834]
[1737321643892,0.36230669,105850.0,105840.0,0.00295727]
[1737321646507,0.36230669,105850.0,105840.0,0.00295731]
[1737321647204,1.03523238,105850.0,105840.0,0.00768903]
[1737321647499,0.047285,105840.0,105830.0,0.22291376]
[1737321647802,0.51073638,105840.0,105830.0,0.22291376]
[1737321648000,0.14993638,105840.0,105830.0,0.22291376]
[1737321648505,0.04729,105830.0,105820.0,0.36221686]
[1737321648699,0.09861569,105830.0,105820.0,0.36221686]
[1737321649200,0.04729,105830.0,105820.0,0.36221686]
[1737321650303,0.13588009,105840.0,105820.0,0.36221686]
[1737321650496,0.13588009,105840.0,105830.0,0.41212569]
[1737321650497,0.0845544,105840.0,105830.0,0.41212569]
[1737321650798,0.0845544,105840.0,105830.0,0.40809]
[1737321651195,0.0845544,105840.0,105830.0,0.45941569]
[1737321651390,0.11224424,105850.0,105830.0,0.45941569]
[1737321651598,0.01082525,105860.0,105850.0,0.047281]
[1737321651809,0.64915598,105870.0,105860.0,0.047277]
[1737321652105,0.64915598,105870.0,105860.0,0.408077]
[1737321652307,0.69642798,105870.0,105860.0,0.408077]
[1737321652515,0.69642798,105870.0,105860.0,0.3608]
[1737321652811,0.555712,105870.0,105860.0,0.3608]
[1737321653603,0.555712,105870.0,105860.0,0.408077]
[1737321654504,0.56652786,105870.0,105860.0,0.408077]
[1737321654805,0.56652786,105870.0,105860.0,0.648977]
[1737321657318,0.56652786,105870.0,105860.0,0.65370747]
[1737321658404,0.14261332,105890.0,105860.0,0.75635885]
[1737321658605,0.14213332,105890.0,105880.0,0.82019369]
[1737321658806,0.15303456,105890.0,105880.0,0.82492416]
[1737321659007,0.15161722,105890.0,105880.0,0.82492416]
[1737321659398,0.15161722,105890.0,105880.0,0.86630258]
[1737321659607,0.15161722,105890.0,105880.0,0.8278799]
[1737321659808,0.19888022,105890.0,105880.0,0.8278799]
[1737321660305,0.47028993,105890.0,105880.0,0.00768621]
[1737321660506,0.47028993,105890.0,105870.0,0.28332988]
[1737321660507,0.047268,105880.0,105870.0,0.28332988]
[1737321660706,0.83339369,105880.0,105870.0,0.28332988]
[1737321661103,0.047272,105870.0,105860.0,0.68829083]
[1737321661306,0.09859769,105870.0,105860.0,0.68829083]
[1737321661516,0.09859769,105870.0,105860.0,0.3608]
[1737321664012,0.45939769,105870.0,105850.0,0.6127]
[1737321664208,0.09860269,105860.0,105850.0,0.3608]
[1737321664400,0.047285,105840.0,105830.0,1.114119]
[1737321664613,0.09861069,105840.0,105830.0,0.868119]
[1737321665105,0.047285,105840.0,105830.0,0.868119]
[1737321665414,0.047285,105840.0,105830.0,0.8534]
[1737321666811,0.09861069,105840.0,105830.0,0.85366502]
[1737321669808,0.09861069,105840.0,105830.0,0.61096502]
[1737321670214,0.14993638,105840.0,105830.0,0.00026502]
[1737321671609,0.09861069,105840.0,105830.0,0.00026502]
[1737321672518,0.09861069,105840.0,105830.0,0.00322263]
[1737321672717,0.09861069,105840.0,105830.0,0.00795479]
[1737321672918,0.09861069,105840.0,105830.0,0.00322263]
[1737321675607,0.16089052,105840.0,105830.0,0.00322263]
[1737321676424,0.16089052,105840.0,105830.0,0.00322271]
[1737321676618,0.10956483,105840.0,105830.0,0.00322271]
[1737321677525,0.16089052,105840.0,105830.0,0.00322271]
[1737321678119,0.10956483,105840.0,105830.0,0.00322271]
[1737321678622,0.10956483,105840.0,105830.0,0.00795502]
[1737321678929,0.05823914,105840.0,105830.0,0.36875502]
[1737321679824,0.10956483,105840.0,105830.0,0.36875502]
[1737321680517,0.16089052,105840.0,105830.0,0.36402271]
[1737321680732,0.10956483,105840.0,105830.0,0.36402271]
[1737321680928,0.16089052,105840.0,105830.0,0.00322271]
[1737321681426,0.10956483,105840.0,105830.0,0.00322271]
[1737321681930,0.05823914,105840.0,105830.0,0.4626384]
[1737321682123,0.05823914,105840.0,105830.0,0.42008027]
[1737321682324,0.05823914,105840.0,105830.0,0.36875458]
[1737321683826,0.10956483,105840.0,105830.0,0.36875458]
[1737321684025,0.04729,105830.0,105820.0,0.36221686]
[1737321684229,0.09861569,105830.0,105820.0,0.36990647]
[1737321684929,0.09861569,105830.0,105820.0,0.36848961]
[1737321685824,0.09861569,105830.0,105820.0,0.36375754]
[1737321686226,0.09861569,105830.0,105820.0,0.36848981]
[1737321686629,0.04729,105830.0,105820.0,0.36848981]
[1737321686837,0.04729,105830.0,105820.0,0.36848988]
[1737321688034,0.05824114,105840.0,105820.0,0.46710857]
[1737321688331,0.05824114,105840.0,105830.0,0.3608]
[1737321688534,0.05824114,105840.0,105830.0,0.62593234]
[1737321689232,0.10956683,105840.0,105830.0,0.00473234]
[1737321691034,0.25028281,105840.0,105830.0,0.00473234]
[1737321691533,0.25028281,105840.0,105830.0,0.36553234]
[1737321692030,0.25028281,105840.0,105830.0,0.36553202]
[1737321692429,0.35166683,105840.0,105830.0,0.34641269]
[1737321692634,0.71246683,105840.0,105830.0,0.00473202]
[1737321693425,0.71246683,105840.0,105830.0,0.00473227]
[1737321693634,0.85318281,105840.0,105830.0,0.17476208]
[1737321695128,0.9045085,105840.0,105830.0,0.17476208]
[1737321695633,0.9045085,105840.0,105830.0,0.16365525]
[1737321695827,0.04729,105830.0,105820.0,0.24324789]
[1737321696031,0.71371569,105830.0,105820.0,0.22677318]
[1737321696223,0.76504138,105830.0,105810.0,0.07683782]
[1737321696425,0.047303,105800.0,105790.0,0.39449871]
[1737321696625,0.047303,105800.0,105790.0,0.33463412]
[1737321696830,0.09862869,105800.0,105790.0,0.33463412]
[1737321697326,0.09862869,105800.0,105790.0,0.69543412]
[1737321698042,0.047303,105800.0,105790.0,0.94473412]
[1737321698335,0.047303,105800.0,105790.0,0.6101]
[1737321699338,0.09862869,105800.0,105790.0,0.6101]
[1737321700238,0.047303,105800.0,105790.0,0.6101]
[1737321700434,0.01077244,105800.0,105790.0,0.70873369]
[1737321700734,1.547303,105800.0,105790.0,0.908208]
[1737321701836,1.547303,105800.0,105790.0,0.6101]
[1737321702042,1.5,105800.0,105790.0,0.66142569]
[1737321702232,1.5,105800.0,105790.0,0.96545062]
[1737321703034,1.547303,105800.0,105790.0,0.96545026]
[1737321703244,1.547303,105800.0,105790.0,0.908208]
[1737321703633,1.547303,105800.0,105790.0,0.8609]
[1737321703829,1.59862869,105800.0,105790.0,0.3608]
[1737321704232,0.047308,105790.0,105780.0,0.67005171]
[1737321704541,0.047308,105790.0,105780.0,0.655312]
[1737321705737,0.047308,105790.0,105780.0,0.608]
[1737321705944,0.09863369,105790.0,105780.0,0.61273391]
[1737321706442,0.047308,105790.0,105780.0,0.61273391]
[1737321707139,0.047308,105790.0,105780.0,0.6640596]
[1737321707340,0.047308,105790.0,105780.0,0.7113716]
[1737321707541,0.047308,105790.0,105780.0,0.61273391]
[1737321708442,0.047308,105790.0,105780.0,0.6156926]
[1737321709548,0.09863369,105790.0,105780.0,0.6156926]
[1737321709746,0.58163369,105790.0,105780.0,0.6156926]
[1737321710035,0.58163369,105790.0,105780.0,0.2548926]
[1737321710638,0.58163369,105790.0,105780.0,0.25489315]
[1737321711141,0.54104875,105790.0,105780.0,0.25489315]
[1737321711742,0.05804875,105790.0,105780.0,0.66701884]
[1737321712235,0.01074075,105790.0,105780.0,0.66701884]
[1737321712438,0.047305,105800.0,105780.0,0.71433084]
[1737321712640,0.047305,105800.0,105790.0,0.3608]
[1737321712836,0.047305,105800.0,105790.0,0.36849315]
[1737321713040,0.047305,105800.0,105790.0,0.36849223]
[1737321713842,0.60580693,105810.0,105790.0,0.36849223]
[1737321714137,0.65310693,105810.0,105800.0,0.3608]
[1737321714342,0.17010693,105810.0,105800.0,0.36375855]
[1737321714539,0.22143262,105810.0,105800.0,0.00769199]
[1737321714938,0.22143262,105810.0,105800.0,0.00295855]
[1737321715243,0.47523262,105810.0,105800.0,0.00295855]
[1737321715846,0.77530796,105810.0,105780.0,1.1041]
[1737321716047,0.09863369,105790.0,105780.0,0.49743374]
[1737321716245,0.047308,105790.0,105780.0,0.85823374]
[1737321716441,0.047308,105790.0,105780.0,0.61273374]
[1737321717741,0.047308,105790.0,105780.0,0.608]
[1737321717945,0.09863369,105790.0,105780.0,0.3608]
[1737321718144,0.62473369,105790.0,105780.0,0.3608]
[1737321719248,0.047312,105780.0,105770.0,0.6044177]
[1737321719449,0.047312,105780.0,105770.0,0.83530621]
[1737321719650,0.09863769,105780.0,105770.0,0.59310621]
[1737321719855,0.09863769,105780.0,105770.0,0.59168851]
[1737321720150,0.09863769,105780.0,105770.0,0.586954]
[1737321720946,0.09863769,105780.0,105770.0,0.3608]
[1737321723348,0.047312,105780.0,105770.0,0.3655346]
[1737321723549,0.43482183,105790.0,105770.0,0.46417529]
[1737321723851,0.17072183,105790.0,105780.0,0.3608]
[1737321724151,0.17072183,105790.0,105780.0,0.36553415]
[1737321724352,0.22204752,105790.0,105780.0,0.36553415]
[1737321724735,0.22204752,105790.0,105780.0,0.3714518]
[1737321725145,0.22204752,105790.0,105770.0,0.8808]
[1737321725353,0.047312,105780.0,105770.0,1.106954]
[1737321726546,0.09863769,105780.0,105770.0,1.106954]
[1737321726748,0.22204752,105790.0,105770.0,1.154271]
[1737321726945,0.12341283,105790.0,105780.0,0.408112]
[1737321727246,0.22204652,105790.0,105780.0,0.408112]
[1737321727850,0.17473852,105790.0,105780.0,0.36375855]
[1737321728060,0.17473852,105790.0,105780.0,1.12039402]
[1737321728061,0.06268817,105790.0,105780.0,1.12039402]
[1737321728941,0.06268817,105790.0,105780.0,1.12063887]
[1737321729451,0.06268817,105790.0,105780.0,0.53344003]
[1737321729841,0.30188817,105790.0,105780.0,0.89424003]
[1737321730450,0.06268817,105790.0,105780.0,0.36375856]
[1737321730642,0.06268817,105790.0,105780.0,0.3608]
[1737321730837,0.06268817,105790.0,105780.0,0.36375875]
[1737321731742,0.06268817,105790.0,105780.0,0.60435875]
[1737321732141,0.01136248,105790.0,105780.0,0.60435875]
[1737321732452,0.05132569,105790.0,105780.0,0.83107387]
[1737321732652,0.05132569,105790.0,105780.0,0.83107379]
[1737321733245,0.05132569,105790.0,105780.0,0.59047379]
[1737321733653,0.05132569,105790.0,105780.0,0.87381234]
[1737321733856,0.29222569,105790.0,105780.0,0.87381234]
[1737321734246,0.34355138,105790.0,105780.0,0.51301234]
[1737321734442,0.29222569,105790.0,105780.0,0.49929184]
[1737321734644,0.29222569,105790.0,105780.0,0.49529184]
[1737321734846,0.70435138,105790.0,105780.0,0.41610785]
[1737321735052,0.81640173,105790.0,105770.0,0.64126826]
[1737321735252,0.58705138,105780.0,105770.0,0.28333855]
[1737321735451,0.94785138,105780.0,105770.0,0.28333855]
[1737321736456,0.94785138,105780.0,105770.0,0.24905041]
[1737321736656,1.08856736,105780.0,105760.0,0.2563]
[1737321736947,0.05132569,105770.0,105760.0,0.2563]
[1737321737654,0.05132569,105770.0,105760.0,0.26103515]
[1737321737957,0.16380721,105770.0,105760.0,0.62183515]
[1737321739152,0.16380721,105770.0,105760.0,0.26103515]
[1737321739353,0.16380721,105770.0,105760.0,0.2563]
[1737321739354,0.05132569,105770.0,105760.0,0.2563]
[1737321739657,0.05132569,105770.0,105760.0,0.62183515]
[1737321740948,0.05132569,105770.0,105760.0,0.36553515]
[1737321741750,0.05132569,105770.0,105760.0,0.3714537]
[1737321741948,0.05132569,105770.0,105760.0,0.3608]
[1737321742148,0.05132569,105770.0,105760.0,0.37145339]
[1737321742656,0.05132569,105770.0,105760.0,0.37145344]
[1737321743559,0.16380721,105770.0,105760.0,0.37145344]
[1737321744059,0.16380721,105770.0,105760.0,0.37145317]
[1737321744463,0.11248152,105770.0,105760.0,0.37145317]
[1737321744665,0.16380721,105770.0,105760.0,0.36553474]
[1737321744855,0.05132569,105770.0,105760.0,0.36553474]
[1737321745763,0.16380721,105770.0,105760.0,0.36553474]
[1737321745955,0.16380721,105770.0,105760.0,0.365535]
[1737321746657,0.5759329,105770.0,105750.0,0.583095]
[1737321746964,0.05132569,105760.0,105740.0,1.18943106]
[1737321747162,0.05132569,105750.0,105740.0,0.85325003]
[1737321747758,0.05132569,105760.0,105740.0,0.85324994]
[1737321747952,0.37358152,105770.0,105750.0,0.3608]
[1737321748152,0.37358152,105770.0,105750.0,0.36375964]
[1737321748757,0.15980252,105760.0,105750.0,0.36375964]
[1737321748954,0.21112821,105760.0,105750.0,0.36375964]
[1737321750156,0.09864669,105760.0,105750.0,0.36375964]
[1737321751859,0.09864669,105760.0,105750.0,0.36375949]
[1737321752451,0.10950371,105760.0,105750.0,0.00295949]
[1737321752661,0.10950371,105760.0,105750.0,0.36375949]
[1737321753555,0.10950371,105760.0,105750.0,0.36375955]
[1737321754654,0.05817802,105760.0,105750.0,0.41108555]
[1737321754858,0.01085702,105760.0,105750.0,0.41108555]
[1737321755057,0.09864369,105770.0,105750.0,0.41108555]
[1737321755359,0.21112521,105770.0,105760.0,0.6136]
[1737321755561,0.21112521,105770.0,105760.0,0.86105943]
[1737321755860,0.21112521,105770.0,105760.0,1.10965943]
[1737321756760,0.09864369,105770.0,105760.0,1.16171524]
[1737321757156,0.09864369,105770.0,105760.0,1.11439424]
[1737321757558,0.1095355,105770.0,105760.0,1.11439424]
[1737321757952,0.1095355,105770.0,105760.0,1.16763372]
[1737321758157,0.1095355,105770.0,105760.0,1.12031272]
[1737321761160,0.1095355,105770.0,105760.0,1.12031241]
[1737321761564,0.05820981,105770.0,105760.0,1.16763341]
[1737321761967,0.05820981,105770.0,105760.0,1.1678779]
[1737321762171,0.2531975,105780.0,105760.0,1.21920359]
[1737321762365,0.2531975,105780.0,105770.0,0.40836149]
[1737321762665,0.2531975,105780.0,105770.0,0.4219739]
[1737321762870,0.17019388,105790.0,105780.0,0.047312]
[1737321763070,0.17019388,105790.0,105780.0,0.66140597]
[1737321763371,0.26882757,105790.0,105780.0,0.66140597]
[1737321763872,0.27966523,105790.0,105780.0,0.66140597]
[1737321764465,0.27824637,105790.0,105780.0,0.36849397]
[1737321764661,0.10947135,105790.0,105780.0,0.25452438]
[1737321764864,0.10947135,105790.0,105780.0,0.61532438]
[1737321765165,0.10947135,105790.0,105780.0,0.19986237]
[1737321765369,0.61577135,105790.0,105780.0,0.19986237]
[1737321765762,0.61577135,105790.0,105780.0,0.18066137]
[1737321766072,0.047317,105770.0,105760.0,1.18134076]
[1737321766268,0.047317,105770.0,105760.0,1.43484076]
[1737321766974,0.09864269,105770.0,105760.0,1.44075916]
[1737321767166,0.047317,105770.0,105760.0,1.44075916]
[1737321767473,0.09864269,105770.0,105760.0,1.14800033]
[1737321767674,0.09864269,105770.0,105760.0,0.65000033]
[1737321767865,0.09864269,105770.0,105760.0,0.28920033]
[1737321768064,0.09864269,105770.0,105760.0,0.27304333]
[1737321768369,0.35444269,105770.0,105760.0,0.27304333]
[1737321768568,0.35444269,105770.0,105750.0,0.3608]
[1737321768774,0.047326,105750.0,105740.0,1.46526522]
[1737321769064,0.09865169,105750.0,105740.0,1.46478522]
[1737321769266,0.09865169,105750.0,105740.0,1.46454076]
[1737321769470,0.09865169,105750.0,105740.0,1.21424076]
[1737321769670,0.14997738,105750.0,105740.0,0.69994076]
[1737321770271,0.64077738,105750.0,105740.0,0.3608]
[1737321771365,0.04733,105740.0,105730.0,0.7000154]
[1737321771669,0.09865569,105740.0,105730.0,0.7000154]
[1737321773372,0.09865569,105740.0,105730.0,0.36087464]
[1737321775175,0.09865569,105740.0,105730.0,0.36561092]
[1737321776176,0.09865569,105740.0,105730.0,0.36553628]
[1737321777174,0.09865569,105740.0,105730.0,0.36849655]
[1737321779974,0.09865569,105740.0,105730.0,0.36376031]
[1737321780379,0.09865569,105740.0,105730.0,0.3608]
[1737321780579,0.09865569,105740.0,105730.0,0.36376035]
[1737321781477,0.09865569,105740.0,105730.0,0.3637603]
[1737321784070,0.09865569,105740.0,105730.0,0.3608]
[1737321785673,0.047335,105730.0,105720.0,0.23082171]
[1737321785875,0.14998638,105730.0,105720.0,0.00296033]
[1737321786067,0.62718638,105730.0,105720.0,0.00296033]
[1737321786877,0.62718638,105730.0,105710.0,0.6048]
[1737321786878,0.047339,105720.0,105710.0,0.6048]
[1737321787185,0.14999038,105720.0,105710.0,0.61249741]
[1737321787479,0.14999038,105720.0,105710.0,0.36076054]
[1737321788972,0.14999038,105720.0,105710.0,0.36076057]
[1737321789777,0.09866469,105720.0,105710.0,0.36076057]
[1737321790781,0.10952191,105720.0,105710.0,0.36076057]
[1737321792081,0.10952191,105720.0,105710.0,0.36549747]
[1737321792674,0.1608476,105720.0,105700.0,1.20741469]
[1737321792868,0.09866969,105710.0,105700.0,1.20039816]
[1737321793073,0.09866969,105710.0,105700.0,1.19566083]
[1737321793984,0.09866969,105710.0,105700.0,1.24300883]
[1737321794181,0.09866969,105710.0,105700.0,1.240048]
[1737321795986,0.09866969,105710.0,105700.0,1.46636742]
[1737321796979,0.09866969,105710.0,105700.0,1.72134102]
[1737321798478,0.09866969,105710.0,105700.0,1.77829838]
[1737321799689,0.05819722,105720.0,105710.0,0.047344]
[1737321799881,0.05819722,105720.0,105710.0,0.408144]
[1737321800382,0.13550218,105730.0,105710.0,0.49795608]
[1737321800383,0.13151249,105730.0,105710.0,0.49795608]
[1737321800584,0.13151249,105730.0,105720.0,0.658739]
[1737321800981,0.047336,105730.0,105720.0,0.658739]
[1737321801389,0.047336,105730.0,105720.0,0.74855108]
[1737321802391,0.047336,105730.0,105720.0,0.69722539]
[1737321802591,0.047336,105730.0,105720.0,1.29133975]
[1737321802782,0.047336,105730.0,105720.0,1.29607584]
[1737321803385,0.05834136,105730.0,105720.0,1.34740153]
[1737321803580,0.01100536,105730.0,105720.0,1.34740153]
[1737321803895,0.13292262,105750.0,105740.0,0.04733]
[1737321804188,0.13292262,105750.0,105740.0,0.41286609]
[1737321804390,0.13292262,105750.0,105740.0,1.01746609]
[1737321804583,0.56016569,105760.0,105750.0,0.047326]
[1737321804584,0.047322,105760.0,105750.0,0.047326]
[1737321804779,0.09864769,105760.0,105750.0,0.41582177]
[1737321804993,0.09864769,105760.0,105750.0,0.00769577]
[1737321805290,0.10940636,105760.0,105750.0,0.00769577]
[1737321805684,0.047326,105750.0,105740.0,1.48202397]
[1737321805887,0.09865169,105750.0,105740.0,1.48202397]
[1737321806586,0.09865169,105750.0,105740.0,1.12122397]
[1737321807084,0.09865169,105750.0,105740.0,1.00868233]
[1737321807983,0.09865169,105750.0,105740.0,1.36948233]
[1737321808386,0.09865169,105750.0,105740.0,0.83119912]
[1737321808981,0.047326,105750.0,105740.0,0.92985481]
[1737321809193,0.10940936,105760.0,105740.0,0.92985481]
[1737321809386,0.047325,105760.0,105750.0,0.3608]
[1737321809581,0.09865069,105760.0,105750.0,0.3608]
[1737321810692,0.047325,105760.0,105750.0,0.3608]
[1737321811395,0.09865069,105760.0,105750.0,0.3608]
[1737321813689,0.047326,105750.0,105740.0,0.87852812]
[1737321813888,0.09865169,105750.0,105740.0,0.83119912]
[1737321814086,0.14997738,105750.0,105740.0,0.20481847]
[1737321814388,0.98777738,105750.0,105740.0,0.05995764]
[1737321814585,1.49669738,105750.0,105740.0,0.05095764]
[1737321814786,0.04733,105740.0,105730.0,0.24301731]
[1737321814984,0.45945569,105740.0,105730.0,0.24301731]
[1737321815189,0.047339,105720.0,105710.0,1.14025593]
[1737321815497,0.09866469,105720.0,105710.0,1.14025593]
[1737321815701,0.09866469,105720.0,105710.0,0.57085222]
[1737321815901,0.09866469,105720.0,105710.0,0.36553705]
[1737321816098,0.59696469,105720.0,105710.0,0.36553705]
[1737321816596,0.64829038,105720.0,105710.0,0.36553705]
[1737321817585,0.047344,105710.0,105700.0,0.71193444]
[1737321817900,0.09866969,105710.0,105700.0,0.46849824]
[1737321819293,0.09866969,105710.0,105700.0,0.46849821]
[1737321821389,0.09866969,105710.0,105700.0,0.46876462]
[1737321821703,0.11287851,105710.0,105700.0,0.46876462]
[1737321822603,0.11287851,105710.0,105700.0,0.63842773]
[1737321823105,0.11287851,105710.0,105700.0,0.6384277]
[1737321823894,0.11287851,105710.0,105700.0,0.59584319]
[1737321824095,0.11287851,105710.0,105700.0,0.23504319]
[1737321824290,0.11287851,105710.0,105700.0,0.59110585]
[1737321824907,0.11287851,105710.0,105700.0,0.55450237]
[1737321826408,0.11287851,105710.0,105700.0,0.38762891]
[1737321826909,0.11287851,105710.0,105700.0,0.38762909]
[1737321827301,0.11287851,105710.0,105700.0,0.36833909]
[1737321829713,0.11287851,105710.0,105700.0,0.36537807]
[1737321830611,0.11287851,105710.0,105700.0,0.00457807]
[1737321831207,0.11287851,105710.0,105690.0,0.85351913]
[1737321831410,0.09866869,105700.0,105690.0,0.85648026]
[1737321831609,0.047348,105690.0,105680.0,0.49359738]
[1737321831807,0.047352,105680.0,105670.0,0.3608]
[1737321832007,0.09867769,105680.0,105670.0,0.34614782]
[1737321833909,0.09867769,105680.0,105670.0,0.39350482]
[1737321834109,0.05132569,105680.0,105670.0,0.39350482]
[1737321834815,0.60775069,105700.0,105680.0,0.047348]
[1737321835004,0.60775069,105700.0,105690.0,1.1028]
[1737321835204,0.60775069,105700.0,105690.0,1.510948]
[1737321836506,0.15911245,105710.0,105690.0,1.56227369]
[1737321836819,1.62598214,105710.0,105700.0,0.45946869]
[1737321837003,1.5,105710.0,105700.0,0.47901074]
[1737321837613,1.5,105710.0,105700.0,0.42768505]
[1737321838217,1.5,105710.0,105700.0,0.47900969]
[1737321838615,1.547339,105710.0,105700.0,0.427684]
[1737321838807,1.59866469,105710.0,105700.0,0.380341]
[1737321839212,1.59866469,105710.0,105700.0,0.3655367]
[1737321839412,1.59866469,105710.0,105700.0,0.3608]
[1737321840526,0.047352,105680.0,105670.0,0.3608]
[1737321840711,0.09867769,105680.0,105670.0,0.3608]
[1737321841308,0.047352,105680.0,105670.0,0.3608]
[1737321841924,0.09867769,105680.0,105670.0,0.3608]
[1737321842219,0.09867769,105680.0,105670.0,0.39929875]
[1737321842623,0.09867769,105680.0,105670.0,0.36553839]
[1737321843014,0.11236387,105680.0,105670.0,0.36553839]
[1737321843315,0.06103818,105680.0,105670.0,0.36553839]
[1737321843514,0.06103818,105680.0,105670.0,0.36849989]
[1737321843921,0.06103818,105680.0,105670.0,0.61483535]
[1737321844722,0.06103818,105680.0,105670.0,0.61009696]
[1737321844915,0.06103818,105680.0,105670.0,0.64859568]
[1737321845419,0.11236387,105680.0,105670.0,0.64859568]
[1737321846422,0.06103818,105680.0,105670.0,0.64859568]
[1737321846622,0.06103818,105680.0,105670.0,0.65333397]
[1737321846820,0.06103818,105680.0,105670.0,0.65333395]
[1737321847218,0.06103818,105680.0,105670.0,0.61483523]
[1737321847418,0.06103818,105680.0,105670.0,0.61483526]
[1737321848215,0.06103818,105680.0,105670.0,0.8981525]
[1737321848623,0.11236387,105680.0,105670.0,0.8981525]
[1737321848824,0.06103818,105680.0,105670.0,0.8981525]
[1737321849622,0.06103818,105680.0,105670.0,0.9319131]
[1737321850116,0.06103818,105680.0,105670.0,0.89341416]
[1737321851520,0.06103818,105680.0,105670.0,0.91295966]
[1737321852628,0.06103818,105680.0,105670.0,0.91295963]
[1737321853221,0.06103818,105680.0,105670.0,1.25297998]
[1737321854019,0.91043812,105710.0,105670.0,1.60430567]
[1737321854327,1.547345,105700.0,105690.0,0.408148]
[1737321854520,1.59867069,105700.0,105690.0,1.27234773]
[1737321855027,1.59867069,105700.0,105690.0,1.22499973]
[1737321855229,0.09867069,105700.0,105690.0,0.00769973]
[1737321855431,0.09867069,105700.0,105690.0,0.36849973]
[1737321856024,0.09867069,105700.0,105690.0,0.89815243]
[1737321856424,0.09867069,105700.0,105690.0,0.89815177]
[1737321856930,0.09867069,105700.0,105690.0,0.36849907]
[1737321857926,0.34587069,105700.0,105690.0,0.36849907]
[1737321858126,0.39719638,105700.0,105690.0,0.00769907]
[1737321858430,0.34587069,105700.0,105690.0,0.00769907]
[1737321859733,0.34587069,105700.0,105690.0,0.36376118]
[1737321860026,0.34587069,105700.0,105690.0,0.3608]
[1737321860233,0.34587069,105700.0,105690.0,0.36376136]
[1737321860626,0.39719638,105700.0,105690.0,0.00296136]
[1737321860935,0.34587069,105700.0,105690.0,0.00296136]
[1737321861134,0.39719638,105700.0,105690.0,0.00296136]
[1737321861336,0.34587069,105700.0,105690.0,0.00296136]
[1737321861834,0.45764314,105700.0,105690.0,0.36376136]
[1737321863335,0.45764314,105700.0,105690.0,0.3637613]
[1737321863638,0.34587069,105700.0,105690.0,0.3637613]
[1737321863934,0.34587069,105700.0,105690.0,0.36376131]
[1737321865633,0.34587069,105700.0,105690.0,0.36849934]
[1737321868355,0.39719638,105700.0,105690.0,0.00769934]
[1737321868537,0.75799638,105700.0,105690.0,0.00769934]
[1737321868738,0.39719638,105700.0,105690.0,0.00769934]
[1737321868935,0.75799638,105700.0,105690.0,0.00769934]
[1737321869132,0.39719638,105700.0,105690.0,0.00769934]
[1737321869338,0.047353,105690.0,105680.0,0.28331724]
[1737321869535,0.39650438,105690.0,105680.0,0.28331724]
[1737321869930,0.047357,105680.0,105670.0,0.34002035]
[1737321870136,0.047366,105660.0,105650.0,1.35624898]
[1737321870335,0.047366,105660.0,105650.0,1.35615833]
[1737321870336,0.51081738,105660.0,105650.0,1.35615833]
[1737321870533,0.75731738,105660.0,105650.0,1.35615833]
[1737321871740,0.047375,105640.0,105630.0,0.75634618]
[1737321872044,0.408175,105640.0,105630.0,0.39554618]